bitfinex-derivatives/quotes_BTCF0:USTF0_20250915
["timestamp","ask_amount","ask_price","bid_price","bid_amount"]
[1757897217259,0.05469939,115110.0,115100.0,0.24682156]
[1757897217462,0.05469939,115110.0,115100.0,1.03734156]
[1757897217656,0.05469939,115110.0,115100.0,0.24682156]
[1757897218058,0.05469939,115110.0,115100.0,1.03734156]
[1757897219560,0.05469939,115110.0,115100.0,0.24682156]
[1757897219758,0.07680939,115110.0,115100.0,0.45682156]
[1757897220059,0.07680939,115110.0,115100.0,1.24734156]
[1757897220764,0.07680939,115110.0,115100.0,0.45682156]
[1757897221060,0.07680939,115110.0,115100.0,1.24734156]
[1757897222262,0.02351871,115110.0,115100.0,1.03734156]
[1757897222759,0.02351871,115110.0,115100.0,1.24734156]
[1757897223458,0.02351871,115110.0,115100.0,1.19734156]
[1757897223663,0.02351871,115110.0,115100.0,1.78734156]
[1757897228469,0.02351871,115110.0,115100.0,1.86806234]
[1757897229069,0.02351871,115110.0,115100.0,1.78734156]
[1757897229866,0.02351871,115110.0,115100.0,1.70658983]
[1757897230772,0.02351871,115110.0,115100.0,0.91606983]
[1757897230972,0.04670871,115110.0,115100.0,1.6259]
[1757897231172,0.04670871,115110.0,115100.0,1.70658983]
[1757897231567,0.04670871,115110.0,115100.0,0.91606983]
[1757897231773,0.04670871,115110.0,115100.0,1.70666983]
[1757897233972,0.04670871,115110.0,115100.0,0.91606983]
[1757897234274,0.06046871,115110.0,115100.0,1.03634]
[1757897234465,0.31046871,115110.0,115100.0,1.03634]
[1757897236472,0.31046871,115110.0,115100.0,1.11702983]
[1757897237272,0.31046871,115110.0,115100.0,0.32606983]
[1757897237472,0.31046871,115110.0,115100.0,1.10348983]
[1757897237673,0.31046871,115110.0,115100.0,1.0228]
[1757897239176,0.31046871,115110.0,115100.0,0.2316]
[1757897241479,0.31046871,115110.0,115100.0,0.24475]
[1757897242276,0.29670871,115110.0,115100.0,0.24475]
[1757897242877,0.29670871,115110.0,115100.0,0.32543983]
[1757897243279,0.29670871,115110.0,115100.0,0.24475]
[1757897243880,0.29670871,115110.0,115100.0,0.32543983]
[1757897245582,0.36648528,115110.0,115100.0,0.32543983]
[1757897250285,0.36648528,115110.0,115100.0,0.24475]
[1757897250485,0.36648528,115110.0,115100.0,0.32543983]
[1757897252387,0.38024528,115110.0,115100.0,0.32543983]
[1757897255692,0.38024528,115110.0,115100.0,0.24475]
[1757897259395,0.13024528,115110.0,115100.0,0.24475]
[1757897260888,0.13024528,115110.0,115100.0,0.2316]
[1757897262193,0.16142596,115110.0,115100.0,0.2316]
[1757897269100,0.20811264,115110.0,115100.0,0.2316]
[1757897269598,0.20811264,115110.0,115100.0,0.24488]
[1757897272002,0.20811264,115110.0,115100.0,0.2316]
[1757897272307,0.24211579,115110.0,115100.0,0.2316]
[1757897272502,0.28880247,115110.0,115100.0,0.0216]
[1757897273211,0.24211579,115110.0,115100.0,0.0216]
[1757897276207,0.16142596,115110.0,115100.0,0.03477]
[1757897277411,0.14766596,115110.0,115100.0,0.03477]
[1757897279410,0.11648528,115110.0,115100.0,0.11545983]
[1757897281611,0.11657449,115110.0,115100.0,0.11545983]
[1757897283012,0.04679792,115110.0,115100.0,0.13335809]
[1757897283216,0.02360792,115110.0,115100.0,0.13335809]
[1757897283406,0.02360792,115110.0,115100.0,0.38335809]
[1757897283612,0.02360792,115110.0,115100.0,0.92335809]
[1757897284612,0.02360792,115110.0,115100.0,0.54335809]
[1757897285610,0.02360792,115110.0,115100.0,0.38335809]
[1757897286513,0.04498792,115110.0,115100.0,0.38335809]
[1757897289512,0.02360792,115110.0,115100.0,0.38335809]
[1757897289708,0.02360792,115110.0,115100.0,0.46406858]
[1757897297718,0.04605792,115110.0,115100.0,0.46406858]
[1757897298119,0.02360792,115110.0,115100.0,0.46406858]
[1757897300316,0.02360792,115110.0,115100.0,1.08406858]
[1757897301320,0.02360792,115110.0,115100.0,0.57406858]
[1757897301720,0.04605792,115110.0,115100.0,0.46406858]
[1757897301912,0.04605792,115110.0,115100.0,0.30266826]
[1757897302227,0.04605792,115110.0,115100.0,0.46406858]
[1757897307625,0.04605792,115110.0,115100.0,0.97406858]
[1757897312332,0.02360792,115110.0,115100.0,0.97406858]
[1757897314435,0.04605792,115110.0,115100.0,0.97406858]
[1757897316837,0.02360792,115110.0,115100.0,0.97406858]
[1757897319235,0.02360792,115110.0,115100.0,0.80476874]
[1757897319440,0.02360792,115110.0,115100.0,0.72406858]
[1757897320446,0.02360792,115110.0,115100.0,0.99066858]
[1757897320637,0.02360792,115110.0,115100.0,1.07136874]
[1757897320837,0.002,115110.0,115100.0,0.99066858]
[1757897322739,0.002,115110.0,115100.0,1.17136874]
[1757897322943,0.10111736,115140.0,115130.0,0.0346]
[1757897323242,0.02159555,115140.0,115130.0,0.13317572]
[1757897324137,0.02459555,115140.0,115130.0,0.13317572]
[1757897324338,0.02459555,115140.0,115130.0,0.80387588]
[1757897324641,0.02859555,115140.0,115130.0,0.80387588]
[1757897325242,0.007,115140.0,115130.0,0.81279881]
[1757897328848,0.007,115140.0,115130.0,1.06279881]
[1757897329651,0.007,115140.0,115130.0,1.85323881]
[1757897331651,0.007,115140.0,115130.0,1.86323881]
[1757897331851,0.007,115140.0,115130.0,1.60323881]
[1757897333349,0.007,115140.0,115130.0,1.02279881]
[1757897333548,0.007,115140.0,115130.0,1.81319881]
[1757897334346,0.12062007,115170.0,115130.0,2.32319881]
[1757897334546,0.12062007,115170.0,115160.0,0.19656032]
[1757897334547,0.07430109,115170.0,115160.0,0.19656032]
[1757897334744,0.04312041,115170.0,115160.0,0.19656032]
[1757897334950,0.02152041,115170.0,115160.0,0.19656032]
[1757897335544,0.02352041,115170.0,115160.0,0.19656032]
[1757897336148,0.02152041,115170.0,115160.0,0.19656032]
[1757897336344,0.05012041,115170.0,115160.0,0.19656032]
[1757897336951,0.04812041,115170.0,115160.0,0.19656032]
[1757897337150,0.05012041,115170.0,115160.0,0.19656032]
[1757897340352,0.02852041,115170.0,115160.0,0.19656032]
[1757897340755,0.05012041,115170.0,115160.0,0.19656032]
[1757897341258,0.02852041,115170.0,115160.0,0.19656032]
[1757897343055,0.02852041,115170.0,115160.0,0.20547259]
[1757897343554,0.02852041,115170.0,115160.0,0.19656032]
[1757897343857,0.05012041,115170.0,115160.0,0.19656032]
[1757897344860,0.05012041,115170.0,115160.0,0.03516]
[1757897345058,0.05012041,115170.0,115160.0,0.19656032]
[1757897346759,0.05012041,115170.0,115160.0,0.40656032]
[1757897346962,0.02852041,115170.0,115160.0,0.40656032]
[1757897347158,0.02852041,115170.0,115160.0,0.19656032]
[1757897347664,0.02852041,115170.0,115160.0,0.40656032]
[1757897347963,0.02852041,115170.0,115160.0,0.93656032]
[1757897351866,0.02852041,115170.0,115160.0,0.85577023]
[1757897352359,0.03818068,115170.0,115160.0,0.85577023]
[1757897352556,0.05970109,115170.0,115160.0,0.85577023]
[1757897355169,0.08486736,115170.0,115160.0,0.85577023]
[1757897355368,0.05970109,115170.0,115160.0,1.43638046]
[1757897356071,0.02852041,115170.0,115160.0,1.43638046]
[1757897356264,0.02852041,115170.0,115160.0,1.52317596]
[1757897356265,0.02352041,115170.0,115160.0,1.52317596]
[1757897356465,0.05121168,115180.0,115170.0,0.00858]
[1757897356672,0.05121168,115180.0,115170.0,1.50200046]
[1757897356864,0.03118068,115180.0,115170.0,1.50200046]
[1757897357069,0.03118068,115180.0,115170.0,2.13878836]
[1757897357373,0.07786736,115190.0,115170.0,2.13878836]
[1757897357568,0.07786736,115190.0,115180.0,0.11598023]
[1757897357773,0.07786736,115190.0,115180.0,0.73598023]
[1757897358973,0.07886736,115190.0,115180.0,0.73598023]
[1757897359275,0.07986736,115190.0,115180.0,1.52610023]
[1757897359878,0.07986736,115190.0,115180.0,1.53488253]
[1757897361377,0.04868668,115190.0,115180.0,1.53488253]
[1757897361580,0.07980648,115190.0,115180.0,1.53488253]
[1757897361977,0.0331198,115190.0,115180.0,1.53488253]
[1757897362373,0.002,115190.0,115180.0,1.83488253]
[1757897362977,0.0311198,115200.0,115190.0,0.01333]
[1757897363281,0.0311198,115200.0,115190.0,0.11598023]
[1757897363580,0.0311198,115200.0,115190.0,0.71598023]
[1757897364577,0.0321198,115200.0,115190.0,0.71598023]
[1757897364777,0.0331198,115200.0,115190.0,0.71598023]
[1757897367180,0.002,115200.0,115190.0,0.71598023]
[1757897368378,0.001,115200.0,115190.0,0.71598023]
[1757897368580,0.0214443,115200.0,115190.0,0.71598023]
[1757897369984,0.0214443,115200.0,115190.0,0.63537]
[1757897370181,0.0214443,115200.0,115190.0,0.71598023]
[1757897370981,0.0214443,115200.0,115190.0,0.98258023]
[1757897371181,0.0214443,115200.0,115190.0,1.77254023]
[1757897373381,0.0311198,115220.0,115190.0,1.96332066]
[1757897373576,0.08723066,115230.0,115220.0,0.02204]
[1757897373786,0.08723066,115230.0,115220.0,0.10265023]
[1757897374784,0.08923066,115230.0,115220.0,0.10265023]
[1757897375480,0.34123066,115230.0,115220.0,0.10265023]
[1757897376591,0.34123066,115230.0,115220.0,0.02204]
[1757897376791,0.34123066,115230.0,115220.0,0.10265023]
[1757897379394,0.09123066,115230.0,115220.0,0.10265023]
[1757897379790,0.09123066,115230.0,115220.0,0.02204]
[1757897379991,0.09123066,115230.0,115220.0,0.10265023]
[1757897384700,0.09123066,115230.0,115220.0,0.02204]
[1757897384999,0.09123066,115230.0,115220.0,0.10265023]
[1757897385392,0.11260952,115230.0,115220.0,0.10265023]
[1757897385906,0.1592962,115230.0,115220.0,0.10265023]
[1757897388101,0.1281764,115230.0,115220.0,0.10265023]
[1757897388301,0.15932836,115230.0,115220.0,0.10265023]
[1757897389106,0.1281764,115230.0,115220.0,0.10265023]
[1757897389307,0.15933256,115230.0,115220.0,0.10265023]
[1757897390107,0.1281764,115230.0,115220.0,0.10265023]
[1757897390601,0.1281764,115230.0,115220.0,0.02204]
[1757897390807,0.20878663,115230.0,115220.0,0.02204]
[1757897391304,0.03514,115220.0,115210.0,0.36892023]
[1757897391505,0.08768694,115220.0,115210.0,0.36892023]
[1757897392108,0.11299476,115220.0,115210.0,0.36892023]
[1757897392308,0.11876776,115220.0,115210.0,0.36892023]
[1757897392708,0.05651886,115220.0,115210.0,0.36892023]
[1757897393109,0.11876776,115220.0,115210.0,0.36892023]
[1757897393409,0.05651886,115220.0,115210.0,0.28831]
[1757897393609,0.05651886,115220.0,115210.0,0.36892023]
[1757897393805,0.12076776,115220.0,115210.0,0.36892023]
[1757897394015,0.12176776,115220.0,115210.0,0.36892023]
[1757897394610,0.20237799,115220.0,115210.0,0.02171]
[1757897395114,0.12176776,115220.0,115210.0,0.02171]
[1757897396111,0.03398,115190.0,115180.0,0.03928165]
[1757897396417,0.11198001,115190.0,115180.0,0.15989188]
[1757897396619,0.13335887,115190.0,115180.0,0.11989188]
[1757897396922,0.13335887,115190.0,115180.0,0.16989188]
[1757897397507,0.13335887,115190.0,115180.0,0.17089188]
[1757897397714,0.14190123,115190.0,115180.0,0.09028165]
[1757897397914,0.11070123,115190.0,115180.0,0.12089188]
[1757897398118,0.11070123,115190.0,115180.0,0.12289188]
[1757897398420,0.11070123,115190.0,115180.0,0.02502]
[1757897398613,0.11070123,115190.0,115180.0,0.10563023]
[1757897399121,0.1418703,115190.0,115180.0,0.10563023]
[1757897399419,0.13332794,115190.0,115180.0,0.10563023]
[1757897401017,0.1827691,115190.0,115180.0,0.02502]
[1757897401217,0.1827691,115190.0,115180.0,0.003]
[1757897401218,0.38596909,115190.0,115180.0,0.003]
[1757897401422,0.4327154,115190.0,115180.0,0.003]
[1757897401625,0.4327154,115190.0,115180.0,0.02502]
[1757897402220,0.50258234,115190.0,115180.0,0.02502]
[1757897402421,0.45583603,115190.0,115180.0,0.02502]
[1757897402620,0.3752258,115190.0,115180.0,0.02502]
[1757897403816,0.1252258,115190.0,115180.0,0.10563023]
[1757897404724,0.1252258,115190.0,115180.0,0.02502]
[1757897404921,0.1252258,115190.0,115180.0,0.10563023]
[1757897407826,0.1252258,115190.0,115180.0,0.02502]
[1757897408026,0.1252258,115190.0,115180.0,0.10563023]
[1757897413723,0.1252258,115190.0,115180.0,0.18622916]
[1757897413928,0.20583038,115190.0,115180.0,0.18622916]
[1757897415230,0.1252258,115190.0,115180.0,0.18622916]
[1757897415729,0.1252258,115190.0,115180.0,0.43622916]
[1757897415930,0.04241886,115190.0,115180.0,0.44578916]
[1757897416233,0.05605886,115190.0,115180.0,0.43622916]
[1757897418234,0.05605886,115190.0,115180.0,0.27502]
[1757897418433,0.05605886,115190.0,115180.0,0.43622916]
[1757897420336,0.05627824,115190.0,115180.0,0.43622916]
[1757897423032,0.05627824,115190.0,115180.0,0.27502]
[1757897423337,0.05627824,115190.0,115180.0,0.43622916]
[1757897426143,0.0874113,115190.0,115180.0,0.43622916]
[1757897428135,0.0874113,115190.0,115180.0,0.27502]
[1757897428341,0.0874113,115190.0,115180.0,0.43622916]
[1757897429151,0.0874113,115190.0,115180.0,0.27502]
[1757897429548,0.0874113,115190.0,115180.0,0.43622916]
[1757897433150,0.0737713,115190.0,115180.0,0.43622916]
[1757897433454,0.04263824,115190.0,115180.0,0.43622916]
[1757897433655,0.04263824,115190.0,115180.0,0.38683374]
[1757897433656,0.0527313,115190.0,115180.0,0.38683374]
[1757897433855,0.02159824,115190.0,115180.0,0.30622916]
[1757897434250,0.02159824,115190.0,115180.0,0.18622916]
[1757897434455,0.02159824,115190.0,115180.0,0.76622916]
[1757897435258,0.02159824,115190.0,115180.0,0.83426956]
[1757897437864,0.04467824,115190.0,115180.0,0.83426956]
[1757897438263,0.02159824,115190.0,115180.0,1.62406956]
[1757897439666,0.02159824,115190.0,115180.0,0.83426956]
[1757897439867,0.02159824,115190.0,115180.0,1.62406956]
[1757897442361,0.0527313,115190.0,115180.0,1.62406956]
[1757897442561,0.03113306,115190.0,115180.0,1.62406956]
[1757897443872,0.05421306,115190.0,115180.0,0.83426956]
[1757897444073,0.04467824,115190.0,115180.0,1.62406956]
[1757897446166,0.05421306,115190.0,115180.0,1.62406956]
[1757897446366,0.0758113,115190.0,115180.0,1.62406956]
[1757897447974,0.0886713,115190.0,115180.0,0.32426956]
[1757897448170,0.41927588,115190.0,115180.0,0.02502]
[1757897448377,0.46602219,115190.0,115180.0,0.02502]
[1757897448773,0.4660924,115190.0,115180.0,0.02502]
[1757897449073,0.43488913,115190.0,115180.0,0.02502]
[1757897449872,0.43488913,115190.0,115180.0,0.10562458]
[1757897452478,0.41933714,115190.0,115180.0,0.10562458]
[1757897457384,0.16933714,115190.0,115180.0,0.003]
[1757897457582,0.21608345,115190.0,115180.0,0.003]
[1757897458187,0.16933714,115190.0,115180.0,0.003]
[1757897459682,0.16933714,115190.0,115180.0,0.02558]
[1757897460087,0.08873256,115190.0,115180.0,0.02558]
[1757897460288,0.16933714,115190.0,115180.0,0.10618458]
[1757897460887,0.16933714,115190.0,115180.0,0.02558]
[1757897461087,0.16933714,115190.0,115180.0,0.10618458]
[1757897465886,0.1477389,115190.0,115180.0,0.10618458]
[1757897466090,0.16946604,115190.0,115180.0,0.10618458]
[1757897467392,0.08886146,115190.0,115180.0,0.10618458]
[1757897467594,0.16946604,115190.0,115180.0,0.10618458]
[1757897468295,0.08886146,115190.0,115180.0,0.10618458]
[1757897468894,0.16946604,115190.0,115180.0,0.10618458]
[1757897475799,0.16947148,115190.0,115180.0,0.02558]
[1757897479805,0.16947148,115190.0,115180.0,0.003]
[1757897480706,0.16947148,115190.0,115180.0,0.02616]
[1757897482104,0.16951299,115190.0,115180.0,0.02616]
[1757897482304,0.2162593,115190.0,115180.0,0.02616]
[1757897482506,0.18506498,115190.0,115180.0,0.02616]
[1757897485709,0.10445496,115190.0,115180.0,0.02616]
[1757897487909,0.18506498,115190.0,115180.0,0.02616]
[1757897488209,0.13831867,115190.0,115180.0,0.02616]
[1757897488410,0.18517991,115190.0,115180.0,0.02616]
[1757897489310,0.13831867,115190.0,115180.0,0.02616]
[1757897490807,0.18518351,115190.0,115180.0,0.02616]
[1757897491804,0.18518351,115190.0,115180.0,0.003]
[1757897492405,0.16956256,115190.0,115180.0,0.02616]
[1757897494511,0.4664274,115190.0,115180.0,0.003]
[1757897494814,0.43518351,115190.0,115180.0,0.003]
[1757897495215,0.43518021,115190.0,115180.0,0.003]
[1757897499419,0.18518021,115190.0,115180.0,0.003]
[1757897501416,0.03477,115160.0,115150.0,0.33270375]
[1757897501622,0.05651877,115160.0,115150.0,0.25209373]
[1757897502016,0.14569706,115160.0,115150.0,0.01988373]
[1757897502211,0.17690252,115160.0,115150.0,0.01988373]
[1757897502621,0.17690252,115160.0,115150.0,0.02088373]
[1757897503023,0.96674252,115160.0,115150.0,0.001]
[1757897503424,0.03477,115140.0,115130.0,0.31282002]
[1757897503624,0.05651877,115140.0,115130.0,0.62282002]
[1757897504021,0.05651877,115140.0,115130.0,0.6238559]
[1757897504221,0.03477,115140.0,115130.0,0.6238559]
[1757897504428,0.03377,115140.0,115130.0,0.6238559]
[1757897507829,0.02103,115140.0,115130.0,0.6334159]
[1757897508227,0.03147686,115150.0,115130.0,0.6334159]
[1757897508429,0.07418851,115150.0,115140.0,0.02221]
[1757897508834,0.07418851,115150.0,115140.0,0.10282002]
[1757897509130,0.07418851,115150.0,115140.0,0.1038559]
[1757897513634,0.01773686,115150.0,115140.0,0.44402592]
[1757897513829,0.03876686,115150.0,115140.0,0.44402592]
[1757897514135,0.03876686,115150.0,115140.0,0.3634159]
[1757897514944,0.05178686,115150.0,115140.0,0.27324588]
[1757897515236,0.07345828,115150.0,115140.0,0.3538559]
[1757897515428,0.07345828,115150.0,115140.0,0.02324588]
[1757897516337,0.07345828,115150.0,115140.0,0.1038559]
[1757897516640,0.07345828,115150.0,115140.0,0.02324588]
[1757897519937,0.07345828,115150.0,115140.0,0.1038559]
[1757897520141,0.07345828,115150.0,115140.0,0.02324588]
[1757897522842,0.1540683,115150.0,115140.0,0.02324588]
[1757897523341,0.07345828,115150.0,115140.0,0.02324588]
[1757897523538,0.07345828,115150.0,115140.0,0.00103588]
[1757897524044,0.13239688,115150.0,115140.0,0.02380588]
[1757897525144,0.07352258,115150.0,115140.0,0.02380588]
[1757897525746,0.07352258,115150.0,115140.0,0.02401368]
[1757897528644,0.07352258,115150.0,115140.0,0.1046237]
[1757897529042,0.07352258,115150.0,115140.0,0.02401368]
[1757897529248,0.07352258,115150.0,115140.0,0.1046237]
[1757897531251,0.1046691,115150.0,115140.0,0.1046237]
[1757897531950,0.1046691,115150.0,115140.0,0.02401368]
[1757897532450,0.12024236,115150.0,115140.0,0.02401368]
[1757897535853,0.20090547,115150.0,115140.0,0.02401368]
[1757897536954,0.20090547,115150.0,115140.0,0.08190679]
[1757897537654,0.20090547,115150.0,115140.0,0.10302679]
[1757897541052,0.20090547,115150.0,115140.0,0.1836899]
[1757897541256,0.12024236,115150.0,115140.0,0.1836899]
[1757897542558,0.10475044,115150.0,115140.0,0.1836899]
[1757897547357,0.06050258,115150.0,115140.0,0.1932499]
[1757897547658,0.06050258,115150.0,115140.0,0.20187599]
[1757897547857,0.03947258,115150.0,115140.0,1.1125391]
[1757897548061,0.03947258,115150.0,115140.0,1.03187599]
[1757897551164,0.01773686,115150.0,115140.0,1.30187599]
[1757897551367,0.02136,115170.0,115160.0,0.03168]
[1757897551663,0.04313088,115170.0,115160.0,0.19300622]
[1757897551862,0.04313088,115170.0,115160.0,0.1942499]
[1757897552654,0.04613088,115170.0,115160.0,0.1942499]
[1757897552863,0.04813088,115170.0,115160.0,0.1942499]
[1757897554866,0.04813088,115170.0,115160.0,0.03292368]
[1757897555060,0.14181399,115170.0,115160.0,0.02236368]
[1757897555260,0.4724771,115170.0,115160.0,0.00124368]
[1757897555459,0.50370496,115170.0,115160.0,0.00124368]
[1757897555965,0.42304185,115170.0,115160.0,0.00124368]
[1757897556170,0.55042474,115170.0,115160.0,0.00124368]
[1757897556363,0.51919688,115170.0,115160.0,0.00124368]
[1757897558373,1.30995688,115170.0,115160.0,0.00124368]
[1757897559370,1.05995688,115170.0,115160.0,0.00124368]
[1757897560768,0.89863066,115170.0,115160.0,0.00124368]
[1757897560968,1.05995688,115170.0,115160.0,0.00124368]
[1757897562469,1.09113488,115170.0,115160.0,0.00124368]
[1757897566067,1.09113488,115170.0,115120.0,0.75212213]
[1757897566277,0.11633311,115150.0,115140.0,0.10370311]
[1757897566486,0.13810399,115150.0,115140.0,0.10370311]
[1757897568074,0.14661702,115150.0,115140.0,0.10370311]
[1757897569478,0.14961702,115150.0,115140.0,0.10370311]
[1757897570182,0.06895391,115150.0,115140.0,0.10370311]
[1757897570379,0.14961702,115150.0,115140.0,0.10370311]
[1757897570884,0.14761702,115150.0,115140.0,0.10370311]
[1757897571182,0.15161702,115150.0,115140.0,0.10370311]
[1757897575685,0.03594,115130.0,115120.0,0.58837213]
[1757897575886,0.03594,115130.0,115120.0,1.16309835]
[1757897576894,0.02312,115130.0,115120.0,1.16609835]
[1757897578090,0.02312,115130.0,115120.0,1.95673835]
[1757897579191,0.09348311,115140.0,115120.0,1.95673835]
[1757897579395,0.05768929,115140.0,115130.0,0.10239311]
[1757897579592,0.05768929,115140.0,115130.0,0.22239311]
[1757897580493,0.05768929,115140.0,115130.0,0.14173]
[1757897580692,0.05768929,115140.0,115130.0,0.22239311]
[1757897581489,0.04686929,115140.0,115130.0,0.23195311]
[1757897582389,0.02474929,115140.0,115130.0,0.23195311]
[1757897582594,0.02474929,115140.0,115130.0,0.31261622]
[1757897582795,0.02474929,115140.0,115130.0,0.56261622]
[1757897582995,0.02474929,115140.0,115130.0,0.99261622]
[1757897589002,0.02474929,115140.0,115130.0,1.78321622]
[1757897589196,0.02474929,115140.0,115130.0,1.78317622]
[1757897589900,0.02474929,115140.0,115130.0,1.62185]
[1757897590097,0.02474929,115140.0,115130.0,0.99261622]
[1757897590400,0.02474929,115140.0,115130.0,1.78317622]
[1757897590899,0.02474929,115140.0,115130.0,0.99261622]
[1757897591099,0.02474929,115140.0,115130.0,1.78309622]
[1757897592498,0.003,115140.0,115130.0,1.78309622]
[1757897592895,0.003,115140.0,115130.0,1.88309622]
[1757897593200,0.003,115140.0,115130.0,2.23651662]
[1757897593791,0.003,115140.0,115130.0,2.13651662]
[1757897594197,0.003,115140.0,115130.0,2.40651662]
[1757897595702,0.003,115140.0,115130.0,2.13623662]
[1757897597803,0.003,115140.0,115130.0,2.05555165]
[1757897598605,0.003,115140.0,115130.0,1.26535165]
[1757897598799,0.003,115140.0,115130.0,2.05539165]
[1757897598994,0.003,115140.0,115130.0,1.17853125]
[1757897599199,0.003,115140.0,115130.0,1.96857125]
[1757897600901,0.003,115140.0,115130.0,1.17853125]
[1757897601110,0.003,115140.0,115130.0,1.96857125]
[1757897601604,0.003,115140.0,115130.0,1.17853125]
[1757897601804,0.003,115140.0,115130.0,1.96857125]
[1757897603408,0.003,115140.0,115130.0,1.17853125]
[1757897603609,0.003,115140.0,115130.0,1.96857125]
[1757897604808,0.003,115140.0,115130.0,1.17853125]
[1757897605009,0.003,115140.0,115130.0,1.96857125]
[1757897605909,0.03749,115140.0,115130.0,1.70901125]
[1757897606098,0.0592642,115140.0,115130.0,1.70901125]
[1757897606299,0.3092642,115140.0,115130.0,0.91897125]
[1757897606503,0.38990545,115140.0,115130.0,1.62837]
[1757897606698,0.3092642,115140.0,115130.0,1.70901125]
[1757897611011,0.3092642,115140.0,115130.0,1.44241125]
[1757897612009,0.3092642,115140.0,115130.0,1.36177]
[1757897612210,0.3092642,115140.0,115130.0,1.44241125]
[1757897614013,0.3092642,115140.0,115130.0,0.94241125]
[1757897617310,0.3092642,115140.0,115130.0,1.48241125]
[1757897618217,0.13990545,115140.0,115130.0,0.11173]
[1757897618516,0.13990545,115140.0,115130.0,0.90177]
[1757897619015,0.13990545,115140.0,115130.0,0.11173]
[1757897620515,0.0592642,115140.0,115130.0,0.11173]
[1757897621517,0.38990545,115140.0,115130.0,0.02173]
[1757897621919,0.3899105,115140.0,115130.0,0.02173]
[1757897623924,0.30926925,115140.0,115130.0,0.02173]
[1757897630331,0.03575,115120.0,115110.0,0.84063125]
[1757897630527,0.05752059,115120.0,115110.0,1.51063125]
[1757897631625,0.05752059,115120.0,115110.0,1.52022128]
[1757897631826,0.05752059,115120.0,115110.0,1.78682128]
[1757897632628,0.03575,115120.0,115110.0,1.78682128]
[1757897632931,0.03575,115120.0,115110.0,1.79738128]
[1757897633229,0.02315,115120.0,115110.0,1.25991125]
[1757897633430,0.03575,115120.0,115110.0,2.03991125]
[1757897633629,0.02315,115120.0,115110.0,2.04947125]
[1757897634625,0.03575,115120.0,115110.0,2.04947125]
[1757897640635,0.03575,115120.0,115110.0,2.03891125]
[1757897640829,0.03575,115120.0,115110.0,1.28779]
[1757897641037,0.03575,115120.0,115110.0,1.36843125]
[1757897641237,0.03575,115120.0,115110.0,1.72183125]
[1757897642536,0.05753837,115120.0,115110.0,1.72183125]
[1757897643142,0.03575,115120.0,115110.0,1.72183125]
[1757897643346,0.05754004,115120.0,115110.0,1.72183125]
[1757897643533,0.07519478,115120.0,115110.0,1.64123]
[1757897643838,0.07519478,115120.0,115110.0,1.43123]
[1757897644639,0.07519478,115120.0,115110.0,1.51187125]
[1757897648843,0.07519478,115120.0,115110.0,0.72175125]
[1757897649045,0.07519478,115120.0,115110.0,1.51187125]
[1757897655150,0.07519478,115120.0,115110.0,0.89187125]
[1757897655349,0.07519478,115120.0,115110.0,0.97187125]
[1757897655747,0.07519478,115120.0,115110.0,0.89123]
[1757897655948,0.07519478,115120.0,115110.0,0.97187125]
[1757897656454,0.07519478,115120.0,115110.0,0.18175125]
[1757897656647,0.07519478,115120.0,115110.0,0.97187125]
[1757897656845,0.07519478,115120.0,115110.0,0.18175125]
[1757897657151,0.07519478,115120.0,115110.0,0.97187125]
[1757897659852,0.15589186,115120.0,115110.0,0.97192708]
[1757897664356,0.07519478,115120.0,115110.0,0.97192708]
[1757897667442,0.06259478,115120.0,115110.0,0.98248708]
[1757897672653,0.09377278,115120.0,115110.0,0.98248708]
[1757897680773,0.06259478,115120.0,115110.0,0.98248708]
[1757897684273,0.03944478,115120.0,115110.0,0.98248708]
[1757897684473,0.02179004,115120.0,115110.0,1.51318416]
[1757897688083,0.02179004,115120.0,115110.0,1.77978416]
[1757897688283,0.02179004,115120.0,115110.0,0.98966416]
[1757897688585,0.02179004,115120.0,115110.0,1.77966416]
[1757897688883,0.04294004,115120.0,115110.0,0.82827]
[1757897689180,0.13682712,115120.0,115110.0,0.50840708]
[1757897689375,0.13682712,115120.0,115110.0,1.29840708]
[1757897690275,0.05613004,115120.0,115110.0,0.50840708]
[1757897690484,0.13682712,115120.0,115110.0,1.15840708]
[1757897691082,0.13682712,115120.0,115110.0,0.36840708]
[1757897691282,0.13682712,115120.0,115110.0,1.15840708]
[1757897693084,0.12363712,115120.0,115110.0,1.15840708]
[1757897693283,0.04294004,115120.0,115110.0,1.16896708]
[1757897693983,0.04294004,115120.0,115110.0,0.90236708]
[1757897694285,0.04294004,115120.0,115110.0,0.82167]
[1757897694483,0.04294004,115120.0,115110.0,0.90236708]
[1757897694683,0.05613004,115120.0,115110.0,0.89180708]
[1757897695987,0.05613004,115120.0,115110.0,0.81111]
[1757897696288,0.05613004,115120.0,115110.0,0.89180708]
[1757897699289,0.04294004,115120.0,115110.0,0.89180708]
[1757897699494,0.04294004,115120.0,115110.0,0.90236708]
[1757897704893,0.04294004,115120.0,115110.0,0.11236708]
[1757897705196,0.04294004,115120.0,115110.0,0.90228708]
[1757897705896,0.05575004,115120.0,115110.0,0.89172708]
[1757897709196,0.04294004,115120.0,115110.0,0.90228708]
[1757897712502,0.07411804,115120.0,115110.0,0.90228708]
[1757897713603,0.07411804,115120.0,115110.0,0.90220708]
[1757897714504,0.08692804,115120.0,115110.0,0.82151]
[1757897714704,0.08692804,115120.0,115110.0,0.90220708]
[1757897717307,0.08692804,115120.0,115110.0,0.11236708]
[1757897717612,0.08692804,115120.0,115110.0,0.89160708]
[1757897720713,0.08692804,115120.0,115110.0,0.10180708]
[1757897721009,0.08692804,115120.0,115110.0,0.89156708]
[1757897721607,0.065138,115120.0,115110.0,0.89156708]
[1757897721808,0.0870254,115120.0,115110.0,0.89156082]
[1757897722512,0.0558474,115120.0,115110.0,0.02111]
[1757897722710,0.0558474,115120.0,115110.0,0.89156082]
[1757897723412,0.0558474,115120.0,115110.0,0.81087]
[1757897723611,0.0558474,115120.0,115110.0,0.89156082]
[1757897726614,0.0558474,115120.0,115110.0,0.10180082]
[1757897726816,0.0558474,115120.0,115110.0,0.81083]
[1757897727011,0.0558474,115120.0,115110.0,0.89152082]
[1757897728513,0.0558474,115120.0,115110.0,0.10180082]
[1757897728713,0.0558474,115120.0,115110.0,0.89152082]
[1757897729813,0.0558474,115120.0,115110.0,0.81083]
[1757897730019,0.0558474,115120.0,115110.0,0.89152082]
[1757897730318,0.0558474,115120.0,115110.0,0.10180082]
[1757897730518,0.0558474,115120.0,115110.0,0.89148082]
[1757897734523,0.0558474,115120.0,115110.0,0.81079]
[1757897734720,0.0558474,115120.0,115110.0,0.89148082]
[1757897736625,0.0558474,115120.0,115110.0,0.81079]
[1757897736828,0.0558474,115120.0,115110.0,0.89148082]
[1757897737629,0.0558474,115120.0,115110.0,0.81079]
[1757897737829,0.0558474,115120.0,115110.0,0.89148082]